bitfinex/quotes_BTCUSD_20251224
["timestamp","ask_amount","ask_price","bid_price","bid_amount"]
[1766599969262,0.0687341,87293.0,87290.0,0.010931]
[1766599969748,0.05727914,87292.0,87290.0,0.010931]
[1766599970761,0.05727967,87291.0,87290.0,0.010931]
[1766599970963,0.057281,87289.0,87284.0,0.71762]
[1766599971343,0.06873642,87290.0,87285.0,0.01148]
[1766599971519,0.01145619,87289.0,87285.0,0.01148]
[1766599972100,0.01145632,87288.0,87285.0,0.01148]
[1766599972703,0.0114558,87292.0,87288.0,0.000549]
[1766599972931,0.06873514,87292.0,87288.0,0.000549]
[1766599973077,0.0572806,87290.0,87288.0,0.000549]
[1766599973276,0.01145619,87289.0,87285.0,0.01148]
[1766599973514,0.06873768,87289.0,87285.0,0.01148]
[1766599973892,0.01145632,87288.0,87285.0,0.01148]
[1766599974130,0.05728233,87287.0,87285.0,0.01148]
[1766599974346,0.06873845,87288.0,87285.0,0.01148]
[1766599974490,0.05728295,87286.0,87285.0,0.01148]
[1766599974890,0.05728257,87287.0,87285.0,0.7291]
[1766599975127,0.05728295,87286.0,87285.0,0.7291]
[1766599975302,0.0114575,87279.0,87268.0,0.72907895]
[1766599975524,0.71039,87285.0,87279.0,0.000549]
[1766599975733,0.01145698,87283.0,87279.0,0.000549]
[1766599975969,0.01145711,87282.0,87280.0,0.01148]
[1766599976267,0.01145698,87283.0,87280.0,0.01148]
[1766599976433,0.05011007,87283.0,87280.0,0.01148]
[1766599976631,0.01145672,87285.0,87280.0,0.01148]
[1766599977053,0.01145685,87284.0,87280.0,0.01148]
[1766599977460,0.05728241,87287.0,87284.0,0.000549]
[1766599977646,0.06873886,87287.0,87284.0,0.000549]
[1766599977844,0.06873886,87287.0,87280.0,0.01148]
[1766599978439,0.01145645,87287.0,87280.0,0.01148]
[1766599978696,0.76766946,87292.0,87280.0,0.01148]
[1766599978898,0.01145593,87291.0,87287.0,0.001099]
[1766599979071,0.01145593,87291.0,87282.0,0.06874266]
[1766599979257,0.01145593,87291.0,87283.0,0.01145698]
[1766599979452,0.01145593,87291.0,87282.0,0.06874266]
[1766599979884,0.01145554,87294.0,87283.0,0.81147187]
[1766599980045,0.01145554,87294.0,87284.0,0.01145685]
[1766599980240,0.0114554,87295.0,87284.0,0.01145685]
[1766599980444,0.0114554,87295.0,87283.0,0.75418698]
[1766599980445,0.0114554,87295.0,87283.0,0.74273]
[1766599980696,0.0114554,87295.0,87286.0,0.06873954]
[1766599980856,0.01145554,87294.0,87287.0,0.01148]
[1766599981055,0.01145567,87293.0,87287.0,0.01148]
[1766599981412,0.01145527,87296.0,87283.0,0.74273]
[1766599981614,0.01145409,87305.0,87294.0,0.74273]
[1766599981809,0.01145396,87306.0,87297.0,0.01145514]
[1766599981952,0.01145422,87304.0,87296.0,0.74273]
[1766599982153,0.06872538,87304.0,87295.0,0.01148]
[1766599982391,0.06872538,87304.0,87295.0,0.75421]
[1766599982565,0.06872538,87304.0,87295.0,0.7656654]
[1766599982773,1.2e-07,87300.0,87295.0,0.7656654]
[1766599983202,0.01145422,87304.0,87295.0,0.7656654]
[1766599983404,0.06872466,87305.0,87304.0,0.00031715]
[1766599983613,0.06872466,87305.0,87292.0,0.0114558]
[1766599983614,0.76726,87315.0,87305.0,0.00055]
[1766599983815,0.77871278,87315.0,87306.0,0.01145396]
[1766599984029,0.83597698,87315.0,87305.0,0.00060285]
[1766599984187,0.01145291,87314.0,87305.0,0.0687773]
[1766599984402,0.77871278,87315.0,87305.0,0.0687773]
[1766599984403,0.77871278,87315.0,87306.0,0.01145396]
[1766599984598,0.76726,87315.0,87305.0,0.06877738]
[1766599984805,0.76726,87315.0,87307.0,0.01145383]
[1766599985589,0.01145291,87314.0,87305.0,0.06877738]
[1766599985799,0.01145291,87314.0,87306.0,0.01145396]
[1766599986021,0.01145291,87314.0,87305.0,0.01150694]
[1766599986236,0.83597672,87315.0,87306.0,0.01145396]
[1766599986434,0.83597672,87315.0,87305.0,0.01150694]
[1766599986635,0.01145291,87314.0,87305.0,0.01150694]
[1766599986851,0.77871278,87315.0,87305.0,0.0687774]
[1766599987153,0.01145199,87321.0,87315.0,0.000207]
[1766599987363,0.01145199,87321.0,87309.0,0.01145357]
[1766599987364,0.01145213,87320.0,87312.0,0.01145317]
[1766599987568,0.01145213,87320.0,87311.0,0.02293331]
[1766599988134,0.01145199,87321.0,87312.0,0.05726588]
[1766599988723,0.01145199,87321.0,87313.0,0.01145304]
[1766599988925,0.01145147,87325.0,87315.0,0.75418278]
[1766599989236,0.01145173,87323.0,87316.0,0.01148]
[1766599989974,0.01145147,87325.0,87316.0,0.01148]
[1766599990179,0.01145094,87329.0,87316.0,0.02293265]
[1766599990386,0.01145055,87332.0,87322.0,0.01145186]
[1766599990540,0.06870588,87329.0,87320.0,0.01145213]
[1766599990781,0.01145108,87328.0,87319.0,0.06871232]
[1766599991043,0.01145121,87327.0,87319.0,0.06871232]
[1766599991183,0.01145134,87326.0,87317.0,0.01145252]
[1766599991602,0.01145134,87326.0,87318.0,0.01145239]
[1766599991998,0.01145134,87326.0,87317.0,0.06871484]
[1766599992402,0.06870789,87327.0,87319.0,0.01145226]
[1766599992583,0.01145121,87327.0,87318.0,0.06871429]
[1766599993215,0.01145134,87326.0,87317.0,0.06871484]
[1766599993370,0.83596533,87330.0,87321.0,0.01145199]
[1766599993567,0.06870709,87328.0,87318.0,0.75418239]
[1766599994222,0.01145121,87327.0,87318.0,0.74273]
[1766599994435,0.01145147,87325.0,87318.0,0.74273]
[1766599994637,0.05725666,87327.0,87318.0,0.74273]
[1766599994886,0.01145147,87325.0,87318.0,0.74273]
[1766599995084,0.01145199,87321.0,87318.0,0.74273]
[1766599995224,0.000549,87318.0,87316.0,0.01148]
[1766599995427,0.01145252,87317.0,87311.0,0.00011]
[1766599995683,0.01145226,87319.0,87312.0,0.01148]
[1766599996027,0.01145226,87319.0,87312.0,0.75421]
[1766599996181,0.06871293,87320.0,87312.0,0.75421]
[1766599996562,0.06871208,87321.0,87312.0,0.76566317]
[1766599997479,0.01145199,87321.0,87312.0,0.75421]
[1766599997685,0.01145226,87319.0,87312.0,0.75421]
[1766599999446,0.01145213,87320.0,87312.0,0.75421]
[1766599999747,0.01145239,87318.0,87312.0,0.75421]
[1766600000102,0.06871288,87320.0,87312.0,0.75421]
[1766600000300,0.01145226,87319.0,87312.0,0.75421]
[1766600000792,0.01145252,87317.0,87312.0,0.75421]
[1766600001382,0.01145265,87316.0,87312.0,0.75421]
[1766600001577,0.01145029,87334.0,87325.0,0.74273]
[1766600001780,0.01144885,87345.0,87333.0,0.01145042]
[1766600001975,0.02292832,87349.0,87334.0,0.01148]
[1766600001976,0.0114495,87340.0,87334.0,0.01148]
[1766600002353,0.0114495,87340.0,87329.0,0.74273]
[1766600002354,0.0687015,87335.0,87326.0,0.01145134]
[1766600002550,0.01145042,87333.0,87327.0,0.01148]
[1766600002813,0.06870255,87333.0,87327.0,0.01148]
[1766600002944,0.06870255,87333.0,87323.0,0.81143985]
[1766600002945,0.01145094,87329.0,87323.0,0.74273]
[1766600003148,0.05725337,87332.0,87324.0,0.01148]
[1766600003347,0.06870392,87332.0,87324.0,0.01148]
[1766600003955,0.01145055,87332.0,87324.0,0.01148]
[1766600004165,0.00035493,87333.0,87324.0,0.0801896]
[1766600004594,0.00035493,87333.0,87326.0,0.01145134]
[1766600004799,0.00035493,87333.0,87325.0,0.06870831]
[1766600005010,0.00035493,87333.0,87326.0,0.05725655]
[1766600005184,0.00035493,87333.0,87327.0,0.01145121]
[1766600005326,0.01180535,87333.0,87325.0,0.01145147]
[1766600005661,0.01145055,87332.0,87324.0,0.01148]
[1766600005883,0.01145081,87330.0,87324.0,0.01148]
[1766600006082,0.01145081,87330.0,87324.0,2.749e-05]
[1766600006284,0.76726,87331.0,87324.0,2.749e-05]
[1766600006467,0.01145081,87330.0,87324.0,2.749e-05]
[1766600006670,0.01145094,87329.0,87324.0,2.749e-05]
[1766600007078,0.06870606,87329.0,87324.0,2.749e-05]
[1766600007290,0.01145213,87320.0,87311.0,0.00011]
[1766600007487,0.01145173,87323.0,87311.0,0.00011]
[1766600007488,0.01145173,87323.0,87312.0,0.75421]
[1766600007671,0.76726,87328.0,87321.0,0.01145199]
[1766600007875,0.01145094,87329.0,87323.0,0.00055]
[1766600008275,0.01145134,87326.0,87317.0,0.02293252]
[1766600008471,0.01145094,87329.0,87317.0,0.01148]
[1766600008472,0.01145186,87322.0,87317.0,0.01148]
[1766600008648,0.01145213,87320.0,87317.0,0.01148]
[1766600008850,0.01145186,87322.0,87317.0,0.01148]
[1766600009411,0.01145134,87326.0,87317.0,0.01148]
[1766600009890,0.01145147,87325.0,87317.0,0.01148]
[1766600010121,0.0114516,87324.0,87317.0,0.01148]
[1766600010673,0.01145173,87323.0,87317.0,0.01148]
[1766600010990,0.01145213,87320.0,87317.0,0.010931]
[1766600011290,0.01145199,87321.0,87317.0,0.010931]
[1766600011512,0.06871151,87322.0,87317.0,0.010931]
[1766600012170,0.01145199,87321.0,87317.0,0.010931]
[1766600012490,0.0687129,87320.0,87317.0,0.010931]
[1766600013151,0.01145213,87320.0,87317.0,0.010931]
[1766600013349,0.01145199,87321.0,87317.0,0.010931]
[1766600013565,0.0114516,87324.0,87317.0,0.010931]
[1766600013781,0.00035493,87333.0,87324.0,0.000549]
[1766600013990,0.00035493,87333.0,87326.0,0.71916]
[1766600014196,0.00035493,87333.0,87326.0,0.73061134]
[1766600014931,9.3e-07,87333.0,87326.0,0.77641638]
[1766600015100,0.0114495,87340.0,87330.0,0.73061081]
[1766600015305,0.00010644,87340.0,87331.0,0.01145068]
[1766600015501,0.01148,87342.0,87331.0,0.01145068]
[1766600015502,0.08017559,87342.0,87340.0,8.756e-05]
[1766600015883,0.05724737,87341.0,87331.0,0.01145068]
[1766600016207,0.06869674,87341.0,87332.0,0.01145055]
[1766600016584,0.02292924,87342.0,87333.0,0.05725212]
[1766600016786,0.0114495,87340.0,87331.0,0.00010644]
[1766600017015,0.01144963,87339.0,87331.0,0.01155712]
[1766600017830,0.39419131,87341.0,87331.0,0.01155712]
[1766600018012,0.06869719,87340.0,87331.0,0.00010644]
[1766600018190,0.40564068,87341.0,87331.0,0.00010644]
[1766600018191,0.01144976,87338.0,87331.0,0.00010644]
[1766600018402,0.06869782,87339.0,87331.0,0.00010644]
[1766600018608,0.01144963,87339.0,87331.0,0.01155712]
[1766600018942,0.01144963,87339.0,87331.0,0.00010644]
[1766600019147,0.0114495,87340.0,87331.0,0.01155712]
[1766600019484,0.01148,87343.0,87340.0,8.8e-05]
[1766600019772,0.01148,87343.0,87332.0,0.01145055]
[1766600019773,0.01144963,87339.0,87332.0,0.75617]
[1766600019961,0.0114495,87340.0,87332.0,0.75617]
[1766600020218,0.7425295,87340.0,87331.0,0.01155712]
[1766600020430,0.79977713,87340.0,87331.0,0.01155712]
[1766600020635,0.7425295,87340.0,87331.0,0.01155712]
[1766600020834,0.7425295,87340.0,87331.0,0.06881035]
[1766600021053,0.01144963,87339.0,87331.0,0.01155712]
[1766600021250,0.79977704,87340.0,87331.0,0.01155712]
[1766600022051,0.06869949,87337.0,87331.0,0.00010644]
[1766600022260,0.01145029,87334.0,87331.0,0.00010644]
[1766600022666,0.01145003,87336.0,87331.0,0.00010644]
[1766600022866,0.06869983,87337.0,87331.0,0.00010644]
[1766600022867,0.0114499,87337.0,87331.0,0.00010644]
[1766600023087,0.06869986,87338.0,87331.0,0.00010644]
[1766600023299,0.01144976,87338.0,87331.0,0.00010644]
[1766600023496,0.0114499,87337.0,87331.0,0.00010644]
[1766600024078,0.06869964,87337.0,87331.0,0.00010644]
[1766600024679,0.01145003,87336.0,87331.0,0.00010644]
[1766600024908,0.06870111,87335.0,87331.0,0.00010644]
[1766600025119,0.01145029,87334.0,87331.0,0.00010644]
[1766600025478,0.06869991,87337.0,87331.0,0.00010644]
[1766600025479,0.40564068,87341.0,87331.0,0.00010644]
[1766600025680,0.40564068,87341.0,87331.0,0.01155712]
[1766600025681,0.01144963,87339.0,87331.0,0.01155712]
[1766600026307,0.79977715,87340.0,87331.0,0.01155712]
[1766600026935,0.01144963,87339.0,87331.0,0.01155712]
[1766600027278,0.73108,87340.0,87333.0,0.01145042]
[1766600027427,0.73108,87340.0,87332.0,0.06870317]
[1766600027633,0.73108,87340.0,87333.0,0.01145042]
[1766600027831,0.73108,87340.0,87332.0,0.06870317]
[1766600028355,0.7425295,87340.0,87332.0,0.01145055]
[1766600028565,0.73108,87340.0,87332.0,0.01145055]
[1766600028779,0.01148,87342.0,87334.0,0.05725146]
[1766600028944,0.01148,87342.0,87334.0,0.06870175]
[1766600029152,0.01148,87342.0,87336.0,0.06870003]
[1766600029541,0.09380355,87389.0,87340.0,0.06869669]
[1766600029542,0.01144793,87352.0,87340.0,0.06869669]
[1766600029750,0.01144845,87348.0,87340.0,0.0114495]
[1766600030119,0.02292832,87349.0,87340.0,0.06869701]
[1766600030410,0.01144845,87348.0,87340.0,0.06869674]
[1766600030620,0.01144845,87348.0,87339.0,0.01144963]
[1766600030797,0.01144845,87348.0,87339.0,0.06869762]
[1766600030960,0.01144845,87348.0,87340.0,0.0114495]
[1766600031726,0.08017009,87349.0,87341.0,0.01144937]
[1766600031727,0.01148,87349.0,87341.0,0.01144937]
[1766600032487,0.40567131,87350.0,87343.0,0.01144911]
[1766600032685,0.01144859,87347.0,87338.0,0.0686986]
[1766600032892,0.01144859,87347.0,87339.0,0.01144963]
[1766600033090,0.01144859,87347.0,87338.0,0.0686986]
[1766600033268,0.01144872,87346.0,87338.0,0.01144976]
[1766600033465,0.01144872,87346.0,87335.0,0.06873036]
[1766600033466,0.01199876,87338.0,87335.0,0.01148]
[1766600033671,0.000549,87338.0,87335.0,0.01148]
[1766600033900,0.01144963,87339.0,87335.0,0.01148]
[1766600034079,0.01144924,87342.0,87335.0,0.01148]
[1766600034464,0.06869592,87343.0,87335.0,0.01148]
[1766600034706,0.73108,87346.0,87335.0,0.02293016]
[1766600034883,0.79977242,87346.0,87336.0,0.05724999]
[1766600035204,0.01144885,87345.0,87335.0,0.02293016]
[1766600035350,0.06869394,87344.0,87335.0,0.02293016]
[1766600035860,0.06869391,87344.0,87335.0,0.08018094]
[1766600036066,0.01144911,87343.0,87335.0,0.01148]
[1766600036261,0.01144898,87344.0,87336.0,0.01145003]
[1766600036501,0.79977361,87345.0,87335.0,0.06873065]
[1766600036713,0.79977361,87345.0,87336.0,0.01145003]
[1766600037349,0.74252885,87345.0,87336.0,0.05724989]
[1766600037492,0.79977324,87345.0,87336.0,0.06869992]
[1766600037925,0.01144924,87342.0,87335.0,0.01148]
[1766600038476,0.01144911,87343.0,87335.0,0.02293016]
[1766600038938,0.74252885,87345.0,87337.0,0.0114499]
[1766600039082,0.74252885,87345.0,87335.0,0.02293016]
[1766600039083,0.74252885,87345.0,87336.0,0.06869959]
[1766600039281,0.74252885,87345.0,87337.0,0.0114499]
[1766600039912,0.73108,87345.0,87337.0,0.06869927]
[1766600040149,0.4171195,87350.0,87336.0,0.01145003]
[1766600040150,0.40567131,87350.0,87336.0,0.73023]
[1766600040295,0.01144845,87348.0,87340.0,0.0114495]
[1766600040496,0.22894422,87358.0,87336.0,0.74168003]
[1766600040497,0.00011,87362.0,87354.0,0.01144767]
[1766600040710,0.70978,87362.0,87355.0,0.01148]
[1766600040920,0.70978,87362.0,87354.0,0.01148]
[1766600041137,0.000549,87354.0,87350.0,0.01144819]
[1766600041373,0.000549,87354.0,87353.0,0.01148]
[1766600041780,0.70967,87359.0,87353.0,0.01148]
[1766600041781,0.70967,87356.0,87353.0,0.01148]
[1766600041991,0.00011,87362.0,87338.0,0.01144976]
[1766600041992,0.01144845,87348.0,87338.0,0.01144976]
[1766600042137,0.01144845,87348.0,87336.0,0.01145003]
[1766600042138,0.72111872,87346.0,87339.0,0.0458392]
[1766600042340,0.70967,87344.0,87339.0,0.01148]
[1766600042540,0.70967,87344.0,87336.0,0.24048021]
[1766600042770,0.65238569,87344.0,87338.0,0.0686981]
[1766600043144,0.65183569,87344.0,87339.0,0.01144963]
[1766600043517,0.65183569,87344.0,87337.0,0.0114499]
[1766600043690,0.65183569,87344.0,87338.0,0.01144976]
[1766600043912,0.65183569,87344.0,87339.0,0.01144963]
[1766600044041,0.65183569,87344.0,87338.0,0.01144976]
[1766600044252,0.65238118,87337.0,87333.0,3.042e-05]
[1766600044498,0.42322719,87337.0,87334.0,1.67e-06]
[1766600044819,0.73014131,87343.0,87334.0,0.06870339]
[1766600045023,0.73014131,87343.0,87335.0,0.05725081]
[1766600045234,0.73014131,87343.0,87337.0,0.0114499]
[1766600045437,0.73014131,87343.0,87335.0,0.01145016]
[1766600045648,0.73014131,87343.0,87336.0,0.01145003]
[1766600046026,0.73014131,87343.0,87334.0,1.67e-06]
[1766600046180,0.73014131,87343.0,87334.0,0.01145196]
[1766600046581,0.01159,87344.0,87340.0,0.0114495]
[1766600046914,0.01159,87344.0,87341.0,0.01144937]
[1766600047116,0.01159,87344.0,87339.0,0.01144963]
[1766600047300,0.01159,87344.0,87338.0,0.01144976]
[1766600047640,0.01159,87344.0,87337.0,0.06869879]
[1766600047844,0.01159,87344.0,87338.0,0.01144976]
[1766600048043,0.01159,87344.0,87337.0,0.0114499]
[1766600048601,0.01159,87344.0,87338.0,0.01144976]
[1766600048801,0.01159,87344.0,87337.0,0.06869937]
[1766600049199,0.01159,87344.0,87338.0,0.01144976]
[1766600049601,0.44411554,87344.0,87334.0,0.01145196]
[1766600049844,0.000549,87338.0,87335.0,0.06870049]
[1766600050052,0.37539,87344.0,87336.0,0.22900064]
[1766600050262,0.00011,87344.0,87339.0,0.0572481]
[1766600050452,0.00011,87344.0,87340.0,0.0114495]
[1766600050792,0.00011,87344.0,87340.0,0.01120233]
[1766600050990,0.01148,87348.0,87342.0,0.01144924]
[1766600051146,0.01148,87348.0,87341.0,0.01144937]
[1766600051348,0.01148,87348.0,87340.0,0.0114495]
[1766600052775,0.01148,87348.0,87341.0,0.01144937]
[1766600053225,0.01148,87348.0,87340.0,0.0114495]
[1766600054042,0.01148,87348.0,87341.0,0.01144937]
[1766600054254,0.01148,87348.0,87340.0,0.06869697]
[1766600054460,0.02292845,87348.0,87338.0,0.06869821]
[1766600054609,0.01148,87348.0,87339.0,0.01144963]
[1766600054811,0.02292845,87348.0,87339.0,0.01144963]
[1766600054991,0.01148,87348.0,87341.0,0.05724624]
[1766600055191,0.01148,87348.0,87340.0,0.0114495]
[1766600056188,0.01148,87348.0,87341.0,0.01144937]
[1766600056320,0.02292845,87348.0,87339.0,0.01144963]
[1766600056519,0.01148,87348.0,87340.0,0.06869703]
[1766600056721,0.01148,87348.0,87339.0,0.01144963]
[1766600056920,0.01148,87348.0,87338.0,0.01144976]
[1766600057161,0.02292845,87348.0,87339.0,0.01144963]
[1766600057386,0.01148,87348.0,87339.0,0.01144963]
[1766600057510,0.01148,87348.0,87340.0,0.0686968]
[1766600057714,0.02292845,87348.0,87338.0,0.0686986]
[1766600057934,0.01144872,87346.0,87336.0,0.73023064]
[1766600058266,0.06869212,87347.0,87336.0,0.74168067]
[1766600058410,0.01148,87348.0,87336.0,0.74168067]
[1766600058411,0.01148,87348.0,87339.0,0.01144963]
[1766600058615,0.01144872,87346.0,87338.0,0.73023]
[1766600058848,0.06869232,87346.0,87338.0,0.73023]
[1766600059075,0.06869244,87346.0,87338.0,0.73023]
[1766600059265,0.01144872,87346.0,87338.0,0.73023]
[1766600059472,0.01144872,87346.0,87337.0,0.0114499]
[1766600059473,0.01144872,87346.0,87336.0,0.06870032]
[1766600059672,0.62315548,87350.0,87336.0,0.06870032]
[1766600059673,0.01144741,87356.0,87347.0,0.73023]
[1766600059830,0.00055,87347.0,87339.0,0.74171]
[1766600060036,0.00055,87347.0,87340.0,0.06869679]
[1766600060232,0.01144819,87350.0,87340.0,0.0114495]
[1766600060475,0.06868878,87351.0,87341.0,0.01144937]
[1766600060676,0.06868661,87354.0,87344.0,0.01144898]
[1766600060873,0.01144767,87354.0,87345.0,0.01144885]
[1766600061076,0.01144806,87351.0,87340.0,0.73023]
[1766600061280,0.01144832,87349.0,87340.0,0.73023]
[1766600061456,0.01144832,87349.0,87340.0,0.7416795]
[1766600061663,0.01144819,87350.0,87342.0,0.01144924]
[1766600061983,0.22894966,87356.0,87341.0,0.74167937]
[1766600062140,0.01144793,87352.0,87342.0,0.06869524]
[1766600062337,0.06868921,87350.0,87341.0,0.73023]
[1766600062725,0.01144832,87349.0,87341.0,0.73023]
[1766600062940,0.06868924,87350.0,87341.0,0.73023]
[1766600063469,0.06868897,87351.0,87342.0,0.01144924]
[1766600063652,0.01144819,87350.0,87341.0,0.74167937]
[1766600064057,0.06868719,87353.0,87341.0,0.729681]
[1766600064058,0.00575169,87346.0,87341.0,0.729681]
[1766600064259,0.01144898,87344.0,87341.0,0.729681]
[1766600064460,0.05724428,87345.0,87341.0,0.729681]
[1766600065066,0.06290154,87346.0,87341.0,0.729681]
[1766600065246,0.06869322,87345.0,87341.0,0.729681]
[1766600066002,0.06290154,87346.0,87341.0,0.729681]
[1766600066226,0.01144885,87345.0,87341.0,0.729681]
[1766600066457,0.06869428,87344.0,87341.0,0.729681]
[1766600066673,0.01144963,87339.0,87336.0,6.4e-07]
[1766600066893,0.05724948,87338.0,87335.0,1.6e-07]
[1766600067077,0.13413,87340.0,87335.0,1.6e-07]
[1766600067630,0.1455795,87340.0,87335.0,1.6e-07]
[1766600067992,0.13413,87340.0,87335.0,1.6e-07]
[1766600068282,0.1455795,87340.0,87335.0,1.6e-07]
[1766600068503,0.01148,87342.0,87335.0,1.6e-07]
[1766600069001,0.01148,87342.0,87335.0,0.05725039]
[1766600069751,0.01148,87342.0,87336.0,0.06870018]
[1766600069862,0.01148,87342.0,87338.0,0.01144976]
[1766600070064,0.01144793,87352.0,87342.0,0.000549]
[1766600070309,0.01148,87351.0,87343.0,0.057245]
[1766600070550,0.01144819,87350.0,87342.0,0.77196]
[1766600070850,0.01144832,87349.0,87342.0,0.77196]
[1766600071046,0.01144819,87350.0,87342.0,0.77196]
[1766600071324,0.05724109,87350.0,87342.0,0.77196]
[1766600071992,0.06869043,87349.0,87342.0,0.77196]
[1766600072167,0.01144832,87349.0,87342.0,0.77196]
[1766600072369,0.01144819,87350.0,87342.0,0.77196]
[1766600072574,0.01144832,87349.0,87342.0,0.77196]
[1766600073357,0.06869022,87349.0,87342.0,0.77196]
[1766600073577,0.01144845,87348.0,87342.0,0.77196]
[1766600074393,0.06869022,87349.0,87342.0,0.77196]
[1766600075422,0.02292806,87351.0,87342.0,0.77196]
[1766600075423,0.08016903,87351.0,87342.0,0.77196]
[1766600075626,0.01144819,87350.0,87342.0,0.77196]
[1766600075989,0.06868939,87350.0,87342.0,0.77196]
[1766600076182,0.01144819,87350.0,87342.0,0.78340924]
[1766600076466,0.01148,87351.0,87344.0,0.01144898]
[1766600076682,0.01148,87351.0,87348.0,0.01144845]
[1766600076888,0.24038186,87361.0,87351.0,0.000549]
[1766600076889,0.01148,87357.0,87351.0,0.000549]
[1766600077266,0.01144688,87360.0,87351.0,0.01144806]
[1766600077624,0.06868626,87354.0,87347.0,0.77196]
[1766600077795,0.01144767,87354.0,87345.0,0.06869301]
[1766600077995,0.01144767,87354.0,87345.0,0.06869309]
[1766600078197,0.01144767,87354.0,87344.0,0.02292898]
[1766600078412,0.06868655,87355.0,87346.0,0.01144872]
[1766600078863,0.01144754,87355.0,87346.0,0.01144872]
[1766600079083,0.06868446,87356.0,87347.0,0.01144859]
[1766600079512,0.01144741,87356.0,87347.0,0.06869147]
[1766600079723,0.06868524,87355.0,87346.0,0.01144872]
[1766600079933,0.01144754,87355.0,87346.0,0.0686923]
[1766600080136,0.13536,87357.0,87348.0,0.01144845]
[1766600080344,0.00011,87362.0,87352.0,0.01144793]
[1766600080556,0.01155662,87362.0,87357.0,0.000549]
[1766600080767,0.00011,87362.0,87354.0,0.01144767]
[1766600080976,0.00011,87362.0,87353.0,0.06868633]
[1766600081809,0.00011,87362.0,87355.0,0.01144754]
[1766600082137,0.00011,87362.0,87354.0,0.01144767]
[1766600082345,0.0004,87378.0,87362.0,0.79953]
[1766600082562,0.01148,87372.0,87366.0,0.0686765]
[1766600082996,0.01148,87372.0,87365.0,0.86820613]
[1766600083216,0.06867051,87374.0,87365.0,0.79953]
[1766600083420,0.01144531,87372.0,87365.0,0.79953]
[1766600083636,0.00055,87365.0,87359.0,0.01144701]
[1766600083850,0.01148,87367.0,87359.0,0.01144701]
[1766600084076,0.01148,87367.0,87361.0,0.01144675]
[1766600084277,0.01148,87367.0,87360.0,0.06868073]
[1766600084848,0.01148,87367.0,87363.0,0.01144649]
[1766600086595,0.01148,87367.0,87362.0,0.06867928]
[1766600086596,0.01148,87367.0,87360.0,0.01144688]
[1766600087441,0.01148,87367.0,87362.0,0.01144662]
[1766600087846,0.01148,87367.0,87363.0,0.01144649]
[1766600088369,0.01148,87367.0,87362.0,0.01144662]
[1766600088782,0.01148,87367.0,87363.0,0.01144649]
[1766600089831,0.01148,87367.0,87363.0,0.06867891]
[1766600090038,0.01148,87367.0,87364.0,0.01144636]
[1766600090295,0.01148,87367.0,87363.0,0.06867891]
[1766600090817,0.01148,87367.0,87364.0,0.01144636]
[1766600091184,0.01148,87367.0,87362.0,0.06867967]
[1766600091379,0.06888866,87373.0,87367.0,0.000549]
[1766600091380,0.01148,87369.0,87367.0,0.000549]
[1766600091740,0.0002164,87373.0,87367.0,0.01144596]
[1766600091963,0.0002164,87373.0,87370.0,0.01144557]
[1766600092166,0.0002164,87373.0,87366.0,0.06867629]
[1766600092548,0.01144623,87365.0,87345.0,0.79953]
[1766600092731,0.01144649,87363.0,87354.0,0.01144767]
[1766600092929,0.01144649,87363.0,87353.0,0.03203203]
[1766600093151,0.01144649,87363.0,87355.0,0.01144754]
[1766600093570,0.06867846,87364.0,87355.0,0.01144754]
[1766600093910,0.02292623,87365.0,87355.0,0.06868518]
[1766600094111,0.01148,87365.0,87357.0,0.01144727]
[1766600094242,0.01144636,87364.0,87355.0,0.01144754]
[1766600095233,0.01144636,87364.0,87356.0,0.01144741]
[1766600095433,0.01144649,87363.0,87355.0,0.01144754]
[1766600095630,0.06868077,87361.0,87352.0,0.01144793]
[1766600095842,0.06867943,87363.0,87354.0,0.01144767]
[1766600096280,0.06867943,87363.0,87352.0,0.06868721]
[1766600096281,0.00055,87354.0,87349.0,0.01144832]
[1766600096553,0.01148,87358.0,87350.0,0.01144819]
[1766600096743,0.05723843,87354.0,87345.0,0.01148]
[1766600096942,0.01144754,87355.0,87346.0,0.01144872]
[1766600097140,0.01144741,87356.0,87347.0,0.01144859]
[1766600097345,0.06868383,87357.0,87348.0,0.01144845]
[1766600097521,0.01144727,87357.0,87348.0,0.06869065]
[1766600097854,0.01144727,87357.0,87347.0,0.06869149]
[1766600097855,0.01144741,87356.0,87347.0,0.01144859]
[1766600098074,0.01144741,87356.0,87348.0,0.01144845]
[1766600098297,0.06868427,87357.0,87348.0,0.01144845]
[1766600098513,0.01144727,87357.0,87348.0,0.01144845]
[1766600098726,0.02292714,87358.0,87349.0,0.01144832]
[1766600098930,0.01144727,87357.0,87349.0,0.01144832]
[1766600099135,0.08016312,87358.0,87349.0,0.01144832]
[1766600099340,0.01144727,87357.0,87348.0,0.01144845]
[1766600099969,0.01144727,87357.0,87349.0,0.01144832]
[1766600100447,0.08016308,87358.0,87348.0,0.06869064]
[1766600100674,0.02292714,87358.0,87348.0,0.01144845]
[1766600100887,0.01144767,87354.0,87345.0,0.01148]
[1766600101097,0.01144793,87352.0,87345.0,0.01148]
[1766600101316,0.06868691,87353.0,87345.0,0.01148]
[1766600101570,0.01144806,87351.0,87345.0,0.01148]
[1766600101763,0.01144793,87352.0,87345.0,0.01148]
[1766600101764,0.06868823,87352.0,87345.0,0.01148]
[1766600102639,0.0114478,87353.0,87345.0,0.01148]
[1766600103844,0.00055,87345.0,87340.0,0.79953]
[1766600104051,0.00055,87345.0,87335.0,0.24045149]
[1766600104052,0.0572462,87343.0,87335.0,1.6e-07]
[1766600104287,0.0114495,87340.0,87335.0,1.6e-07]
[1766600104499,0.01144872,87346.0,87335.0,0.01145032]
[1766600104709,0.05724557,87343.0,87335.0,1.6e-07]
[1766600104888,0.73738595,87360.0,87343.0,0.000549]
[1766600104889,0.01144806,87351.0,87343.0,0.000549]
[1766600105116,0.01144662,87362.0,87352.0,0.74444]
[1766600105318,0.01144741,87356.0,87352.0,0.74444]
[1766600105534,0.00055,87352.0,87346.0,0.75588872]
[1766600105749,0.00055,87352.0,87346.0,0.81313171]
[1766600105955,0.01148,87355.0,87346.0,0.75588872]
[1766600105956,0.02292754,87355.0,87346.0,0.75588872]
[1766600106150,0.01148,87355.0,87347.0,0.06869147]
[1766600106307,0.01148,87355.0,87348.0,0.06869063]
[1766600106710,0.01148,87355.0,87347.0,0.06869147]
[1766600106918,0.02292754,87355.0,87347.0,0.01144859]
[1766600107076,0.01144767,87354.0,87346.0,0.74444]
[1766600107433,0.05724026,87352.0,87342.0,0.01148]
[1766600107589,0.01144714,87358.0,87350.0,0.01144819]
[1766600107934,0.01148,87357.0,87350.0,0.06868854]
[1766600108154,0.01148,87357.0,87349.0,0.01144832]